bitfinex/quotes_BTCUSD_20220115
["timestamp","ask_amount","ask_price","bid_price","bid_amount"]
[1642225557063,0.00013752,42978.0,42977.0,0.78910507]
[1642225557263,0.00013752,42978.0,42977.0,1.44851572]
[1642225558415,0.00013752,42978.0,42977.0,0.94851572]
[1642225559115,0.00013752,42978.0,42977.0,2.36352053]
[1642225559417,0.00013752,42978.0,42977.0,2.39352053]
[1642225561017,0.00013752,42978.0,42977.0,2.36352053]
[1642225561517,0.00013752,42978.0,42977.0,2.39952053]
[1642225562158,0.00013752,42978.0,42977.0,1.70998338]
[1642225562757,0.00013752,42978.0,42977.0,0.94851572]
[1642225562957,0.00013752,42978.0,42977.0,0.534114]
[1642225563158,0.00013752,42978.0,42977.0,0.375951]
[1642225563360,0.00013752,42978.0,42977.0,0.84251345]
[1642225563558,0.00013752,42978.0,42977.0,0.527951]
[1642225563760,0.00013752,42978.0,42977.0,0.84102855]
[1642225563958,0.00013752,42978.0,42977.0,0.94102855]
[1642225564259,0.00013752,42978.0,42977.0,1.53789338]
[1642225564661,0.00013752,42978.0,42977.0,1.48589338]
[1642225565411,0.00013752,42978.0,42977.0,1.53089338]
[1642225566414,0.00013752,42978.0,42977.0,0.93402855]
[1642225566617,0.00013752,42978.0,42977.0,1.62199677]
[1642225566814,1.18613752,42979.0,42977.0,1.62199677]
[1642225567015,1.18613752,42979.0,42978.0,0.32947299]
[1642225567215,1.18613752,42979.0,42978.0,0.70559199]
[1642225567415,1.18613752,42979.0,42978.0,0.80559199]
[1642225569355,1.18613752,42979.0,42978.0,0.85559199]
[1642225570658,1.18613752,42979.0,42978.0,0.80559199]
[1642225570858,1.18613752,42979.0,42978.0,0.476119]
[1642225571058,1.18613752,42979.0,42978.0,1.07300146]
[1642225571456,1.18613752,42979.0,42978.0,1.12300146]
[1642225572356,1.18613752,42979.0,42978.0,0.526119]
[1642225572557,1.18613752,42979.0,42978.0,0.83775244]
[1642225572758,1.18613752,42979.0,42978.0,1.3846349]
[1642225573311,1.18613752,42979.0,42978.0,1.4226349]
[1642225574611,1.18613752,42979.0,42978.0,0.514119]
[1642225575211,1.18613752,42979.0,42978.0,0.476119]
[1642225575412,1.18613752,42979.0,42978.0,0.518119]
[1642225576212,1.18613752,42979.0,42978.0,0.748119]
[1642225577273,1.18613752,42979.0,42978.0,0.706119]
[1642225577474,1.18613752,42979.0,42978.0,0.749119]
[1642225578475,1.18613752,42979.0,42978.0,1.0613628]
[1642225578676,1.18613752,42979.0,42978.0,1.0183628]
[1642225579476,1.18613752,42979.0,42978.0,1.0603628]
[1642225579676,1.18613752,42979.0,42978.0,1.65733298]
[1642225580076,1.18613752,42979.0,42978.0,1.71548998]
[1642225580276,1.18613752,42979.0,42978.0,1.1185198]
[1642225580708,1.18613752,42979.0,42978.0,1.0765198]
[1642225581204,1.18613752,42979.0,42978.0,2.49022042]
[1642225581406,1.18613752,42979.0,42978.0,2.53222042]
[1642225582204,1.18613752,42979.0,42978.0,2.21997662]
[1642225582428,1.18613752,42979.0,42978.0,2.16181962]
[1642225582604,1.18613752,42979.0,42978.0,1.44444453]
[1642225582804,1.18613752,42979.0,42978.0,1.30318931]
[1642225583404,1.18613752,42979.0,42978.0,1.34718931]
[1642225583804,1.18613752,42979.0,42978.0,0.750119]
[1642225584697,1.18613752,42979.0,42978.0,0.706119]
[1642225585096,1.18613752,42979.0,42978.0,1.30318931]
[1642225585299,1.18613752,42979.0,42978.0,1.6236975]
[1642225585498,1.18613752,42979.0,42978.0,1.6616975]
[1642225585896,1.18613752,42979.0,42978.0,1.34118931]
[1642225587396,1.18613752,42979.0,42978.0,1.34218931]
[1642225587598,1.18613752,42979.0,42978.0,1.65765117]
[1642225588616,1.18613752,42979.0,42978.0,1.61865117]
[1642225589520,1.18613752,42979.0,42978.0,1.65665117]
[1642225589817,1.18613752,42979.0,42978.0,1.34118931]
[1642225590618,1.18613752,42979.0,42978.0,1.30318931]
[1642225591019,1.18613752,42979.0,42978.0,0.706119]
[1642225591418,1.18613752,42979.0,42978.0,0.745119]
[1642225592661,1.18613752,42979.0,42978.0,1.02684994]
[1642225593459,1.18613752,42979.0,42978.0,1.05784994]
[1642225595065,1.18613752,42979.0,42978.0,1.02684994]
[1642225595264,1.18613752,42979.0,42978.0,0.706119]
[1642225595509,1.18613752,42979.0,42978.0,1.33219394]
[1642225595709,1.18613752,42979.0,42978.0,1.66327875]
[1642225596711,1.18613752,42979.0,42978.0,1.63427875]
[1642225597512,1.18613752,42979.0,42978.0,1.66327875]
[1642225597712,1.18613752,42979.0,42978.0,1.06620381]
[1642225597913,1.18613752,42979.0,42978.0,2.41329907]
[1642225598313,1.18613752,42979.0,42978.0,2.08221426]
[1642225598514,1.18613752,42979.0,42978.0,0.735119]
[1642225598714,1.18613752,42979.0,42978.0,0.706119]
[1642225599466,1.18613752,42979.0,42978.0,0.734119]
[1642225600667,1.18613752,42979.0,42978.0,0.706119]
[1642225601269,1.18613752,42979.0,42978.0,1.02328687]
[1642225601468,1.18613752,42979.0,42978.0,0.735119]
[1642225602906,1.18613752,42979.0,42978.0,0.706119]
[1642225603104,1.18613752,42979.0,42978.0,1.02394563]
[1642225603605,1.18613752,42979.0,42978.0,0.734119]
[1642225604206,1.18613752,42979.0,42978.0,1.05542351]
[1642225604806,1.18613752,42979.0,42978.0,0.706119]
[1642225605506,1.18613752,42979.0,42978.0,0.734119]
[1642225606757,1.18613752,42979.0,42978.0,1.30320644]
[1642225607560,1.18613752,42979.0,42978.0,1.33220644]
[1642225608159,1.18613752,42979.0,42978.0,1.0494308]
[1642225608860,1.18613752,42979.0,42978.0,1.0204308]
[1642225609259,1.18613752,42979.0,42978.0,0.706119]
[1642225609461,1.18613752,42979.0,42978.0,0.734119]
[1642225609659,1.18613752,42979.0,42978.0,1.3311921]
[1642225610714,1.18613752,42979.0,42978.0,1.3031921]
[1642225610915,1.18613752,42979.0,42978.0,0.706119]
[1642225611515,1.18613752,42979.0,42978.0,0.734119]
[1642225612719,1.18613752,42979.0,42978.0,1.0305208]
[1642225613518,1.18613752,42979.0,42978.0,1.0585208]
[1642225614781,1.18613752,42979.0,42978.0,1.0305208]
[1642225615682,1.18613752,42979.0,42978.0,1.0585208]
[1642225616285,1.18613752,42979.0,42978.0,1.6554212]
[1642225616886,1.18613752,42979.0,42978.0,1.6274212]
[1642225617085,1.18613752,42979.0,42978.0,1.3030194]
[1642225617284,1.18613752,42979.0,42978.0,1.61756144]
[1642225617487,1.18613752,42979.0,42978.0,1.64556144]
[1642225618814,1.18613752,42979.0,42978.0,1.61756144]
[1642225619615,1.18613752,42979.0,42978.0,1.64556144]
[1642225620717,1.18613752,42979.0,42978.0,1.61756144]
[1642225621518,1.18613752,42979.0,42978.0,1.64556144]
[1642225622861,1.18613752,42979.0,42978.0,1.61756144]
[1642225623464,1.06664705,42979.0,42978.0,1.67571944]
[1642225623662,0.602,42979.0,42978.0,1.78899944]
[1642225623863,0.59670192,42990.0,42978.0,1.78899944]
[1642225624063,0.59670192,42990.0,42983.0,0.00125422]
[1642225624263,0.00018909,42989.0,42983.0,0.02157422]
[1642225624462,0.00018909,42989.0,42986.0,0.058149]
[1642225624663,0.59670192,42990.0,42986.0,0.058149]
[1642225624664,0.0001719,42988.0,42986.0,0.058149]
[1642225624864,0.0001719,42988.0,42987.0,0.24688276]
[1642225625064,2.32420192,42994.0,42990.0,0.058147]
[1642225625264,1.74760192,42994.0,42992.0,0.0581456]
[1642225625916,0.59670192,42994.0,42992.0,0.1162896]
[1642225626112,0.6957403,42996.0,42994.0,0.30933852]
[1642225626113,0.59670192,42996.0,42994.0,0.30933852]
[1642225626314,0.59670192,42996.0,42994.0,0.69249324]
[1642225626613,0.59670192,42996.0,42995.0,0.65199455]
[1642225627012,0.59701134,42996.0,42995.0,0.32292183]
[1642225627613,0.00030942,42996.0,42995.0,0.32292183]
[1642225628216,0.00030942,42996.0,42995.0,0.64764409]
[1642225628813,0.00030942,42996.0,42995.0,0.32292183]
[1642225630065,0.30163046,43003.0,42994.0,0.31014084]
[1642225630264,0.00604235,43001.0,42994.0,0.31014084]
[1642225630868,0.00604235,43001.0,42994.0,0.28814084]
[1642225631465,0.00604235,43001.0,42998.0,0.32709552]
[1642225631767,0.00010314,43002.0,42998.0,0.746929]
[1642225632165,8.595e-05,43001.0,42999.0,0.00126152]
[1642225632565,0.001,43005.0,43000.0,0.376119]
[1642225632766,0.001,43005.0,43001.0,0.05813484]
[1642225633010,0.001,43005.0,43001.0,0.11626884]
[1642225633011,0.00013752,43004.0,43001.0,0.11626884]
[1642225633211,0.00013752,43004.0,42999.0,0.00126152]
[1642225633419,0.00012033,43003.0,42999.0,0.00126152]
[1642225633611,0.00012033,43003.0,42998.0,0.6366511]
[1642225633810,0.00010314,43002.0,42998.0,0.6366511]
[1642225634011,0.00010314,43002.0,42999.0,0.376119]
[1642225634211,8.595e-05,43001.0,42999.0,0.376119]
[1642225634612,6.876e-05,43000.0,42999.0,0.376119]
[1642225635813,6.876e-05,43000.0,42999.0,0.37618953]
[1642225637672,6.876e-05,43000.0,42999.0,0.42618953]
[1642225637974,6.876e-05,43000.0,42999.0,7.053e-05]
[1642225640429,6.876e-05,43000.0,42999.0,0.31565413]
[1642225640623,6.876e-05,43000.0,42999.0,0.37618953]
[1642225645063,6.876e-05,43000.0,42999.0,0.37118953]
[1642225645463,6.876e-05,43000.0,42998.0,0.32709552]
[1642225645663,6.876e-05,43000.0,42998.0,0.34409552]
[1642225646964,6.876e-05,43000.0,42998.0,0.32709552]
[1642225651761,6.876e-05,43000.0,42995.0,0.023]
[1642225652762,6.876e-05,43000.0,42997.0,0.26009686]
[1642225658021,6.876e-05,43000.0,42998.0,0.375983]
[1642225658424,6.876e-05,43000.0,42997.0,0.26009686]
[1642225668268,6.876e-05,43000.0,42997.0,0.31823846]
[1642225668768,6.876e-05,43000.0,42997.0,0.26009686]
[1642225669569,6.876e-05,43000.0,42998.0,0.375983]
[1642225670073,6.876e-05,43000.0,42997.0,0.26009686]
[1642225671013,6.876e-05,43000.0,42998.0,0.375983]
[1642225671711,6.876e-05,43000.0,42997.0,0.27109686]
[1642225673113,6.876e-05,43000.0,42997.0,0.26009686]
[1642225679639,6.876e-05,43000.0,42998.0,0.375983]
[1642225686613,6.876e-05,43000.0,42998.0,0.43412268]
[1642225687814,6.876e-05,43000.0,42998.0,0.50826068]
[1642225688016,6.876e-05,43000.0,42998.0,0.45012268]
[1642225688217,6.876e-05,43000.0,42998.0,0.391983]
[1642225689212,6.876e-05,43000.0,42998.0,0.43412342]
[1642225689413,6.876e-05,43000.0,42998.0,0.375983]
[1642225691017,0.67318848,43005.0,42998.0,0.375983]
[1642225691216,0.4174,43006.0,42997.0,0.26009686]
[1642225691415,6.876e-05,43004.0,42997.0,0.26009686]
[1642225692417,0.30516113,43004.0,42997.0,0.26009686]
[1642225692617,6.876e-05,43004.0,42997.0,0.26009686]
[1642225704675,6.876e-05,43004.0,42998.0,0.31605143]
[1642225704974,6.876e-05,43004.0,42998.0,0.31286786]
[1642225705173,6.876e-05,43004.0,42997.0,0.26009686]
[1642225705773,6.876e-05,43004.0,42997.0,0.31823852]
[1642225706276,6.876e-05,43004.0,42998.0,0.31321539]
[1642225706475,6.876e-05,43004.0,42997.0,0.31823852]
[1642225708015,6.876e-05,43004.0,42998.0,0.31321539]
[1642225708215,6.876e-05,43004.0,43001.0,0.24498124]
[1642225710521,6.876e-05,43004.0,42998.0,0.33268313]
[1642225710720,6.876e-05,43004.0,42998.0,0.006]
[1642225711121,6.876e-05,43004.0,42997.0,0.26009686]
[1642225711771,6.876e-05,43004.0,42998.0,0.26784301]
[1642225713066,6.876e-05,43004.0,42998.0,0.64883803]
[1642225713266,6.876e-05,43004.0,42998.0,0.639523]
[1642225713467,6.876e-05,43004.0,42998.0,0.32598228]
[1642225713866,6.876e-05,43004.0,42998.0,0.33598228]
[1642225714069,6.876e-05,43004.0,42999.0,0.058136]
[1642225714466,6.876e-05,43004.0,42998.0,0.27784301]
[1642225714767,6.876e-05,43004.0,42998.0,0.59319826]
[1642225715166,6.876e-05,43004.0,42998.0,0.58319826]
[1642225715417,6.876e-05,43004.0,42998.0,0.64133526]
[1642225715619,6.876e-05,43004.0,42999.0,0.0581377]
[1642225715818,6.876e-05,43004.0,42999.0,0.058133]
[1642225716622,6.876e-05,43004.0,43000.0,0.05813258]
[1642225717020,6.876e-05,43004.0,43001.0,0.058131]
[1642225717320,0.41246876,43006.0,43001.0,0.058131]
[1642225717522,0.001,43007.0,43005.0,0.27451102]
[1642225717720,0.001,43007.0,43005.0,0.52136222]
[1642225719371,0.001,43007.0,43005.0,0.57949183]
[1642225719571,0.001,43007.0,43005.0,0.52136222]
[1642225719772,0.001,43007.0,43005.0,0.27451102]
[1642225719969,0.001,43007.0,43005.0,0.28351102]
[1642225721372,0.00020756,43007.0,43005.0,0.27451102]
[1642225723930,0.00020756,43007.0,43002.0,0.29999938]
[1642225724733,0.00020756,43007.0,43002.0,0.009]
[1642225725132,0.00020756,43007.0,43002.0,0.26908369]
[1642225725733,0.00020756,43007.0,43002.0,0.53753286]
[1642225726532,0.00020756,43007.0,43002.0,0.26008369]
[1642225728986,0.00020756,43007.0,43002.0,0.49008369]
[1642225729886,0.00020756,43007.0,43002.0,0.50108369]
[1642225731122,0.00020756,43007.0,43002.0,0.49008369]
[1642225731926,0.00020756,43007.0,43002.0,0.50108369]
[1642225733124,0.00020756,43007.0,43002.0,0.49008369]
[1642225733924,0.00020756,43007.0,43002.0,0.50108369]
[1642225734969,0.33194599,43007.0,43002.0,0.50108369]
[1642225735871,0.33194599,43007.0,43002.0,0.50208369]
[1642225737171,0.33194599,43007.0,43002.0,0.49008369]
[1642225737570,0.32694599,43007.0,43002.0,0.49008369]
[1642225737773,0.42694599,43007.0,43002.0,0.23]
[1642225738026,0.42694599,43007.0,43002.0,0.24]
[1642225738027,0.058149,43005.0,43002.0,0.24]
[1642225738225,0.121798,43004.0,43002.0,0.24]
[1642225739125,0.121798,43004.0,43002.0,0.23]
[1642225741129,0.26510161,43008.0,43002.0,0.23]
[1642225741329,0.00604134,43008.0,43002.0,0.23]
[1642225741971,0.00604134,43008.0,43002.0,0.55071338]
[1642225743872,0.00604134,43008.0,43002.0,0.55371338]
[1642225745179,0.00604134,43008.0,43002.0,0.55071338]
[1642225745841,0.00604134,43008.0,43002.0,0.55371338]
[1642225747141,0.00604134,43008.0,43002.0,0.55071338]
[1642225747943,0.00604134,43008.0,43002.0,0.55471338]
[1642225749673,0.00604134,43008.0,43002.0,0.55071338]
[1642225749873,0.00604134,43008.0,43002.0,0.55371338]
[1642225750476,0.375983,43007.0,43002.0,0.55371338]
[1642225751074,0.375983,43007.0,43002.0,0.55071338]
[1642225751874,0.375983,43007.0,43002.0,0.55371338]
[1642225752075,0.058147,43006.0,43002.0,0.55371338]
[1642225752275,0.058147,43006.0,43002.0,0.233]
[1642225752474,0.375983,43005.0,43002.0,0.233]
[1642225753623,0.058147,43006.0,43002.0,0.233]
[1642225753821,0.00604134,43008.0,43002.0,0.233]
[1642225754020,0.375983,43007.0,43002.0,0.233]
[1642225754221,0.375983,43007.0,43002.0,0.23]
[1642225760178,0.00604134,43008.0,43002.0,0.23]
[1642225760422,0.058148,43006.0,43002.0,0.23]
[1642225761725,0.00604141,43007.0,43002.0,0.23]
[1642225761924,0.375983,43006.0,43002.0,0.23]
[1642225763729,0.001,43009.0,43003.0,0.32020556]
[1642225764182,0.001,43009.0,43002.0,0.23]
[1642225764183,6.877e-05,43008.0,43002.0,0.23]
[1642225767181,6.877e-05,43008.0,43007.0,0.33371846]
[1642225773174,6.877e-05,43008.0,43007.0,0.66894587]
[1642225774075,6.877e-05,43008.0,43007.0,0.66994587]
[1642225774476,6.877e-05,43008.0,43007.0,0.33471846]
[1642225775276,6.877e-05,43008.0,43007.0,0.33371846]
[1642225788374,6.877e-05,43008.0,43007.0,0.32871846]
[1642225790456,6.877e-05,43008.0,43007.0,0.25871846]
[1642225808541,6.877e-05,43008.0,43007.0,0.60538399]
[1642225808743,0.4174,43011.0,43008.0,0.375983]
[1642225808942,0.002,43011.0,43008.0,0.375983]
[1642225809188,0.002,43011.0,43008.0,0.434107]
[1642225809387,0.002,43011.0,43009.0,0.39074838]
[1642225809587,0.003,43014.0,43010.0,0.82742624]
[1642225809787,0.001,43014.0,43012.0,0.00123167]
[1642225809987,0.001,43014.0,43012.0,0.07199167]
[1642225810192,0.001,43014.0,43013.0,0.375983]
[1642225810591,0.00110314,43014.0,43013.0,0.375983]
[1642225810989,0.00110314,43014.0,43013.0,0.73586798]
[1642225812089,0.00110314,43014.0,43013.0,0.74686798]
[1642225813427,0.00110314,43014.0,43013.0,0.73586798]
[1642225814027,0.00110314,43014.0,43013.0,0.74686798]
[1642225814628,0.00010314,43020.0,43014.0,0.28232605]
[1642225814829,0.00010314,43020.0,43016.0,0.29792249]
[1642225815029,6.876e-05,43018.0,43016.0,0.29792249]
[1642225816879,0.63704886,43021.0,43016.0,0.29792249]
[1642225817883,0.63704886,43021.0,43014.0,0.28232605]
[1642225818180,0.63704886,43021.0,43014.0,0.28732605]
[1642225818983,0.63704886,43021.0,43017.0,0.26529369]
[1642225819182,0.375983,43020.0,43017.0,0.26529369]
[1642225819586,0.63704886,43021.0,43017.0,0.26529369]
[1642225819783,0.63704886,43021.0,43017.0,0.49529369]
[1642225821879,0.63704886,43021.0,43017.0,0.23]
[1642225822080,0.63704886,43021.0,43017.0,0.233]
[1642225823085,0.63704886,43021.0,43018.0,0.27063572]
[1642225823882,0.63204886,43021.0,43018.0,0.27063572]
[1642225824083,0.63204886,43021.0,43018.0,0.59257716]
[1642225824284,0.4174,43021.0,43018.0,0.27063572]
[1642225827790,0.4174,43021.0,43017.0,0.28811339]
[1642225828033,0.4174,43021.0,43017.0,0.231]
[1642225828633,0.475527,43021.0,43017.0,0.231]
[1642225828835,0.24951363,43019.0,43017.0,0.231]
[1642225829037,0.821798,43018.0,43017.0,0.231]
[1642225829238,0.82783907,43018.0,43017.0,0.231]
[1642225829437,0.82783907,43018.0,43017.0,0.23]
[1642225829640,0.12783907,43018.0,43017.0,0.23]
[1642225830039,0.47783907,43018.0,43017.0,0.23]
[1642225830846,0.53597207,43018.0,43017.0,0.23]
[1642225831043,0.18597207,43018.0,43017.0,0.23]
[1642225843032,0.53597207,43018.0,43017.0,0.23]
[1642225843235,0.18597207,43018.0,43017.0,0.23]
[1642225843436,0.28597207,43018.0,43017.0,0.23]
[1642225844635,0.18597207,43018.0,43017.0,0.23]
[1642225854183,0.68191175,43018.0,43017.0,0.23]
[1642225854384,0.38191175,43018.0,43017.0,0.23]
[1642225854581,0.48191175,43018.0,43017.0,0.23]
[1642225854783,0.54004475,43018.0,43017.0,0.23]
[1642225873331,0.54004475,43018.0,43003.0,0.5685]
[1642225873332,0.05943263,43013.0,43003.0,0.5685]
[1642225873531,0.0581451,43012.0,43003.0,0.5685]
[1642225873732,0.0581451,43012.0,43004.0,0.00024067]
[1642225873933,0.0581451,43012.0,43004.0,0.35710871]
[1642225874132,0.00128563,43013.0,43010.0,0.29135619]
[1642225874534,0.15814,43014.0,43011.0,0.00012033]
[1642225874732,0.058137,43013.0,43011.0,0.00012033]
[1642225874932,0.058137,43013.0,43010.0,0.28905485]
[1642225875132,0.375871,43012.0,43010.0,0.28905485]
[1642225875731,0.1,43012.0,43010.0,0.28905485]
[1642225875931,0.058137,43013.0,43010.0,0.28905485]
[1642225878490,0.058137,43013.0,43010.0,0.60603287]
[1642225878689,0.1,43016.0,43010.0,0.28905485]
[1642225878888,0.375871,43015.0,43010.0,0.28905485]
[1642225879087,0.47593976,43015.0,43010.0,0.28905485]
[1642225879489,0.37593976,43015.0,43010.0,0.28905485]
[1642225880735,0.058137,43014.0,43010.0,0.62303432]
[1642225881937,0.058137,43014.0,43010.0,0.61492544]
[1642225882238,0.058137,43014.0,43010.0,0.30405485]
[1642225882735,0.058137,43014.0,43010.0,0.61685306]
[1642225883536,6.876e-05,43015.0,43010.0,0.61685306]
[1642225883737,0.375871,43014.0,43010.0,0.61685306]
[1642225883942,6.876e-05,43015.0,43010.0,0.61685306]
[1642225884182,6.876e-05,43015.0,43010.0,0.61185306]
[1642225884380,6.876e-05,43015.0,43010.0,0.61685306]
[1642225886182,6.876e-05,43015.0,43010.0,0.61185306]
[1642225886386,6.876e-05,43015.0,43010.0,0.30305485]
[1642225886583,0.05820376,43015.0,43010.0,0.30305485]
[1642225888245,0.05820376,43015.0,43010.0,0.29905485]
[1642225892695,0.11634176,43015.0,43010.0,0.29905485]
[1642225892891,0.05820376,43015.0,43010.0,0.29905485]
[1642225896938,0.11634176,43015.0,43010.0,0.29905485]
[1642225897537,0.05820376,43015.0,43010.0,0.29905485]
[1642225897940,0.11634176,43015.0,43010.0,0.29905485]
[1642225898139,0.058137,43013.0,43010.0,0.29905485]
[1642225900681,0.04168404,43015.0,43010.0,0.29905485]
[1642225901783,0.058137,43013.0,43010.0,0.29905485]
[1642225902383,0.058137,43013.0,43010.0,0.61418119]
[1642225902583,0.058137,43013.0,43010.0,0.29905485]
[1642225903656,0.04168404,43015.0,43010.0,0.29905485]
[1642225903657,0.02516132,43015.0,43010.0,0.29905485]
[1642225904459,0.05820376,43015.0,43010.0,0.29905485]
[1642225905763,0.11634276,43015.0,43010.0,0.29905485]
[1642225905964,0.058141,43013.0,43010.0,0.29905485]
[1642225907687,0.05820376,43015.0,43010.0,0.61053332]
[1642225907888,0.05820376,43015.0,43010.0,0.29905485]
[1642225909090,0.05740893,43017.0,43010.0,0.29905485]
[1642225909291,0.375871,43016.0,43011.0,6.876e-05]
[1642225909491,0.79560649,43020.0,43011.0,6.876e-05]
[1642225909793,6.876e-05,43019.0,43014.0,0.00124541]
[1642225910544,6.876e-05,43019.0,43015.0,0.44571071]
[1642225911746,6.876e-05,43019.0,43017.0,0.25735949]
[1642225911945,6.876e-05,43019.0,43018.0,0.35249935]
[1642225913046,0.37223716,43029.0,43018.0,0.35249935]
[1642225913245,0.340871,43028.0,43018.0,0.35249935]
[1642225913448,6.876e-05,43023.0,43018.0,0.35249935]
[1642225917194,6.876e-05,43023.0,43019.0,0.05811271]
[1642225917795,6.876e-05,43023.0,43020.0,0.37706405]
[1642225918041,6.876e-05,43023.0,43020.0,0.50207405]
[1642225919741,6.876e-05,43023.0,43021.0,0.68231735]
[1642225919942,6.876e-05,43023.0,43022.0,0.70328053]
[1642225922000,6.876e-05,43023.0,43022.0,0.70451502]
[1642225922402,0.4154,43033.0,43024.0,0.058104]
[1642225922600,0.5154,43033.0,43028.0,0.0012667]
[1642225922801,0.00010314,43029.0,43028.0,0.0012667]
[1642225923401,0.00010314,43029.0,43028.0,0.28677723]
[1642225926452,0.00010314,43029.0,43028.0,0.28551053]
[1642225926650,0.01214469,43043.0,43028.0,0.68721877]
[1642225926851,0.163269,43046.0,43035.0,0.02772]
[1642225927048,0.163269,43046.0,43045.0,0.022868]
[1642225927249,0.504272,43046.0,43045.0,0.022868]
[1642225927451,0.50456423,43046.0,43045.0,0.022868]
[1642225927654,0.50456423,43046.0,43045.0,0.66640567]
[1642225927854,0.13856123,43046.0,43045.0,0.66640567]
[1642225928052,0.13356123,43046.0,43045.0,0.66640567]
[1642225928451,0.13356123,43046.0,43045.0,0.66840567]
[1642225929199,0.13356123,43046.0,43045.0,0.64679567]
[1642225929597,0.13356123,43046.0,43045.0,0.64479567]
[1642225930199,0.13356123,43046.0,43045.0,0.64353767]
[1642225931499,0.13356123,43046.0,43045.0,0.65353767]
[1642225932099,0.13356123,43046.0,43045.0,0.33188265]
[1642225933244,0.13356123,43046.0,43045.0,0.01]
[1642225934042,0.82926325,43046.0,43045.0,0.01]
[1642225934442,0.28792676,43043.0,43042.0,0.025]
[1642225934642,0.62892976,43043.0,43042.0,0.025]
[1642225934841,0.62917042,43043.0,43042.0,0.025]
[1642225935242,0.34728119,43043.0,43042.0,0.025]
[1642225935444,0.00024066,43043.0,43042.0,0.025]
[1642225937793,0.00024066,43043.0,43042.0,0.26548508]
[1642225938392,0.12054262,43046.0,43042.0,0.26548508]
[1642225939593,0.12054262,43046.0,43042.0,0.015]
[1642225939793,0.17863662,43046.0,43042.0,0.015]
[1642225940745,0.12054262,43046.0,43042.0,0.015]
[1642225940945,0.12054262,43046.0,43042.0,0.025]
[1642225941948,0.12054262,43046.0,43042.0,0.015]
[1642225944493,0.12054262,43046.0,43045.0,0.00127094]
[1642225944694,0.12054262,43046.0,43045.0,0.87712294]
[1642225945091,0.12054262,43046.0,43045.0,0.37712294]
[1642225945893,0.12054262,43046.0,43045.0,1.42381894]
[1642225946093,0.12054262,43046.0,43045.0,0.37712294]
[1642225946494,0.12054262,43046.0,43045.0,0.40212294]
[1642225946692,0.12054262,43046.0,43045.0,0.78594788]
[1642225947945,0.001,43048.0,43046.0,0.05806715]
[1642225948146,0.001,43048.0,43047.0,0.38227308]
[1642225948946,0.001,43048.0,43047.0,0.375852]
[1642225950147,0.001,43048.0,43047.0,0.68144291]
[1642225952606,0.001,43048.0,43047.0,0.70044291]
[1642225953007,0.001,43048.0,43047.0,0.019]
[1642225953805,0.001,43048.0,43043.0,0.3829]
[1642225954007,0.001,43048.0,43044.0,0.375852]
[1642225954209,6.876e-05,43047.0,43043.0,0.2829]
[1642225954607,6.876e-05,43047.0,43043.0,0.3079]
[1642225954911,6.876e-05,43047.0,43043.0,0.025]
[1642225955542,6.876e-05,43047.0,43044.0,0.375852]
[1642225957551,6.876e-05,43047.0,43042.0,0.015]
[1642225957749,6.876e-05,43047.0,43043.0,0.375852]
[1642225958149,6.876e-05,43047.0,43042.0,0.015]
[1642225958848,6.876e-05,43047.0,43043.0,0.375852]
[1642225961101,6.876e-05,43047.0,43044.0,0.30646101]
[1642225962101,6.876e-05,43047.0,43042.0,0.015]
[1642225962303,6.876e-05,43047.0,43043.0,0.375852]
[1642225962705,6.876e-05,43047.0,43042.0,0.015]
[1642225963442,6.876e-05,43047.0,43043.0,0.375852]
[1642225964043,6.876e-05,43047.0,43042.0,0.015]
[1642225965643,6.876e-05,43047.0,43043.0,0.375852]
[1642225966043,6.876e-05,43047.0,43044.0,0.30916688]
[1642225966243,6.876e-05,43047.0,43045.0,0.375852]
[1642225966698,6.876e-05,43047.0,43043.0,0.01]
[1642225966892,6.876e-05,43047.0,43044.0,0.375852]
[1642225967996,6.876e-05,43047.0,43045.0,0.30523674]
[1642225968196,6.876e-05,43047.0,43042.0,0.015]
[1642225968197,6.876e-05,43047.0,43046.0,0.375852]
[1642225968396,6.876e-05,43047.0,43042.0,0.35223356]
[1642225968598,6.876e-05,43047.0,43044.0,0.012]
[1642225968796,6.876e-05,43047.0,43045.0,0.375852]
[1642225970660,6.876e-05,43047.0,43042.0,0.42931356]
[1642225970860,6.876e-05,43047.0,43043.0,0.375852]
[1642225972062,6.876e-05,43047.0,43045.0,0.00122564]
[1642225972261,6.876e-05,43047.0,43046.0,0.375852]
[1642225972461,6.876e-05,43047.0,43045.0,0.00122564]
[1642225975196,6.876e-05,43047.0,43042.0,0.015]
[1642225975799,6.876e-05,43047.0,43043.0,0.375852]
[1642225976395,6.876e-05,43047.0,43043.0,0.68523758]
[1642225978646,6.876e-05,43047.0,43043.0,0.69923758]
[1642225979645,6.876e-05,43047.0,43044.0,0.05807743]
[1642225979846,6.876e-05,43047.0,43045.0,0.375852]
[1642225981147,6.876e-05,43047.0,43044.0,0.015]
[1642225982093,6.876e-05,43047.0,43043.0,0.30938558]
[1642225982292,6.876e-05,43047.0,43044.0,0.375852]
[1642225983297,6.876e-05,43047.0,43043.0,0.30938558]
[1642225983495,6.876e-05,43047.0,43042.0,0.015]
[1642225983695,0.00134275,43047.0,43042.0,0.015]
[1642225983895,6.876e-05,43047.0,43042.0,0.015]
[1642225984495,0.058103,43044.0,43042.0,0.015]
[1642225984695,0.116205,43044.0,43042.0,0.015]
[1642225984896,0.341003,43043.0,43042.0,0.015]
[1642225985296,0.68717226,43043.0,43024.0,1.100394]
[1642225985544,0.43946926,43043.0,43034.0,0.05]
[1642225985740,0.341003,43042.0,43034.0,0.05]
[1642225985946,0.341003,43042.0,43035.0,0.00013752]
[1642225986742,0.058104,43038.0,43035.0,0.00013752]
[1642225987144,0.00603802,43041.0,43035.0,0.00013752]
[1642225988744,0.058101,43040.0,43035.0,0.00013752]
[1642225988945,0.3504181,43039.0,43035.0,0.00013752]
[1642225990139,0.31329299,43038.0,43035.0,0.00013752]
[1642225990444,0.37139799,43038.0,43035.0,0.00013752]
[1642225991538,0.31844969,43037.0,43035.0,0.00013752]
[1642225992140,0.37139799,43038.0,43035.0,0.00013752]
[1642225992944,0.31329299,43038.0,43035.0,0.00013752]
[1642225997196,0.42936005,43040.0,43035.0,0.34742345]
[1642225997197,0.022,43040.0,43035.0,0.34742345]
[1642225997397,0.022,43040.0,43037.0,0.00125534]
[1642225997596,0.022,43040.0,43037.0,0.05934231]
[1642225997796,0.022,43040.0,43038.0,0.37593795]
[1642225997996,6.876e-05,43047.0,43038.0,0.42593795]
[1642225998197,6.876e-05,43047.0,43045.0,0.31654535]
[1642225998396,6.876e-05,43047.0,43043.0,0.05]
[1642225998599,6.876e-05,43047.0,43046.0,0.00126894]
[1642225998897,6.876e-05,43047.0,43046.0,0.37712094]
[1642225999598,6.876e-05,43047.0,43046.0,0.64241997]